fUST/lending_fUST_20250124
["ID","MTS","AMOUNT","RATE_DAILY","PERIOD"]
[350136090,1737648033453,160.0,0.00023749,120]
[350136091,1737648255928,400.0,0.00013973,2]
[350136092,1737648271441,160.0,0.00023482,120]
[350136093,1737648332248,160.0,0.00023028,120]
[350136094,1737648390860,160.0,0.00022895,120]
[350136095,1737648450821,160.0,0.00022886,120]
[350136099,1737648570874,160.0,0.00023647,120]
[350136100,1737648572108,353.6,0.00024,120]
[350136106,1737648630920,160.0,0.00023202,120]
[350136154,1737648632498,-197.00913,0.0001763,2]
[350136155,1737648632507,-197.00913,0.00017808,2]
[350136157,1737648632518,-381.88871858,0.000189,2]
[350136159,1737648632527,-626.32,0.000193,2]
[350136161,1737648632536,-848.01045305,0.00019399,2]
[350136163,1737648632545,-1260.2502979,0.000194,2]
[350136164,1737648632554,-500.0,0.00019498,3]
[350136165,1737648632564,-155.52619347,0.00019499,2]
[350136167,1737648632573,-500.0,0.00019499,2]
[350136169,1737648632583,-230.14421707,0.00019499,2]
[350136171,1737648632592,-169.14737811,0.00019499,2]
[350136173,1737648632601,-500.0,0.00019499,2]
[350136175,1737648632611,-500.0,0.00019499,2]
[350136177,1737648632620,-500.0,0.00019499,2]
[350136179,1737648632629,-500.0,0.00019499,2]
[350136181,1737648632638,-500.0,0.00019499,2]
[350136183,1737648632648,-500.0,0.00019499,2]
[350136185,1737648632657,-500.0,0.00019499,2]
[350136187,1737648632666,-500.0,0.00019499,2]
[350136189,1737648632676,-500.0,0.00019499,2]
[350136192,1737648632685,-500.0,0.00019499,2]
[350136194,1737648632698,-500.0,0.00019499,2]
[350136196,1737648632707,-500.0,0.00019499,2]
[350136198,1737648632717,-500.0,0.00019499,2]
[350136200,1737648632726,-500.0,0.00019499,2]
[350136202,1737648632735,-500.0,0.00019499,2]
[350136204,1737648632744,-500.0,0.00019499,2]
[350136206,1737648632753,-500.0,0.00019499,2]
[350136207,1737648632763,-500.0,0.00019499,2]
[350136210,1737648632774,-500.0,0.00019499,2]
[350136211,1737648632784,-500.0,0.00019499,2]
[350136214,1737648632793,-500.0,0.00019499,2]
[350136216,1737648632803,-500.0,0.00019499,2]
[350136218,1737648632813,-500.0,0.00019499,2]
[350136220,1737648632826,-500.0,0.00019499,2]
[350136222,1737648632837,-500.0,0.00019499,2]
[350136224,1737648632851,-500.0,0.00019499,2]
[350136226,1737648632862,-364.94112529,0.00019499,2]
[350136228,1737648632874,-3.01700862,0.00019499,2]
[350136230,1737648632884,-189.9632214,0.00019499,2]
[350136232,1737648632894,-500.0,0.00019499,2]
[350136234,1737648632903,-280.0,0.00019499,2]
[350136236,1737648632913,-500.0,0.00019499,2]
[350136239,1737648632922,-500.0,0.00019499,2]
[350136241,1737648632946,-500.0,0.00019499,2]
[350136243,1737648632956,-500.0,0.00019499,2]
[350136245,1737648632966,-500.0,0.00019499,2]
[350136247,1737648632978,-500.0,0.00019499,2]
[350136249,1737648632990,-500.0,0.00019499,2]
[350136251,1737648633000,-500.0,0.00019499,2]
[350136253,1737648633010,-500.0,0.00019499,2]
[350136255,1737648633020,-500.0,0.00019499,2]
[350136257,1737648633031,-500.0,0.00019499,2]
[350136259,1737648633042,-500.0,0.00019499,2]
[350136262,1737648633054,-500.0,0.00019499,2]
[350136264,1737648633064,-500.0,0.00019499,2]
[350136265,1737648633075,-500.0,0.00019499,2]
[350136267,1737648633087,-500.0,0.00019499,2]
[350136270,1737648633098,-609.44102489,0.00019499,2]
[350136272,1737648633108,-500.0,0.00019499,2]
[350136274,1737648633118,-500.0,0.00019499,2]
[350136276,1737648633128,-500.0,0.00019499,2]
[350136277,1737648633138,-453.08495476,0.00019499,2]
[350136279,1737648633149,-500.0,0.00019499,2]
[350136282,1737648633159,-500.0,0.00019499,2]
[350136284,1737648633170,-500.0,0.00019499,2]
[350136286,1737648633184,-500.0,0.00019499,2]
[350136288,1737648633200,-500.0,0.00019499,2]
[350136290,1737648633210,-500.0,0.00019499,2]
[350136292,1737648633220,-500.0,0.00019499,2]
[350136294,1737648633233,-500.0,0.00019499,2]
[350136296,1737648633243,-500.0,0.00019499,2]
[350136298,1737648633254,-500.0,0.00019499,2]
[350136300,1737648633266,-500.0,0.00019499,2]
[350136302,1737648633276,-500.0,0.00019499,2]
[350136304,1737648633287,-500.0,0.00019499,2]
[350136306,1737648633296,-500.0,0.00019499,2]
[350136308,1737648633307,-500.0,0.00019499,2]
[350136311,1737648633318,-500.0,0.00019499,2]
[350136313,1737648633330,-500.0,0.00019499,2]
[350136315,1737648633340,-500.0,0.00019499,2]
[350136317,1737648633352,-500.0,0.00019499,2]
[350136319,1737648633363,-500.0,0.00019499,2]
[350136321,1737648633374,-500.0,0.00019499,2]
[350136323,1737648633385,-500.0,0.00019499,2]
[350136325,1737648633396,-500.0,0.00019499,2]
[350136327,1737648633407,-500.0,0.00019499,2]
[350136329,1737648633418,-500.0,0.00019499,2]
[350136331,1737648633428,-500.0,0.00019499,2]
[350136333,1737648633441,-500.0,0.00019499,2]
[350136335,1737648633454,-500.0,0.00019499,2]
[350136337,1737648633465,-500.0,0.00019499,2]
[350136339,1737648633477,-500.0,0.00019499,2]
[350136341,1737648633487,-500.0,0.00019499,2]
[350136343,1737648633497,-500.0,0.00019499,2]
[350136345,1737648633508,-500.0,0.00019499,2]
[350136347,1737648633518,-550.0,0.00019499,2]
[350136349,1737648633528,-500.0,0.00019499,3]
[350136351,1737648633539,-500.0,0.00019499,3]
[350136353,1737648633549,-8772.22700778,0.000195,5]
[350136355,1737648633559,-1463.53071632,0.000195,5]
[350136358,1737648633572,-49850.84694393,0.000195,15]
[350136360,1737648633587,-6223.94614268,0.000195,15]
[350136362,1737648633599,-10541.731686,0.000195,15]
[350136477,1737648638722,-6421.44482975,0.000195,15]
[350136640,1737648640425,-309.6775229,0.00019305,2]
[350136646,1737648640488,-879.65999996,0.00019305,2]
[350136977,1737648643310,-490.99707547,0.00019305,2]
[350136979,1737648643323,-7184.7292023,0.00019305,2]
[350136981,1737648643334,-500.0,0.00019498,3]
[350136983,1737648643344,-522.43014898,0.00019499,3]
[350136985,1737648643354,-384458.95039764,0.000195,15]
[350136987,1737648643363,-5288.07,0.000195,2]
[350136989,1737648643373,-11054.82,0.000195,2]
[350136991,1737648643383,-500.0,0.00019564,3]
[350136993,1737648643393,-500.0,0.00019564,3]
[350136995,1737648643403,-500.0,0.00019564,3]
[350136997,1737648643413,-500.0,0.00019564,3]
[350136999,1737648643423,-500.0,0.00019564,3]
[350137001,1737648643432,-945.03,0.00019564,3]
[350137003,1737648643442,-500.0,0.00019564,3]
[350137005,1737648643457,-500.0,0.00019564,3]
[350137007,1737648643467,-500.0,0.00019564,3]
[350137009,1737648643476,-500.0,0.00019564,3]
[350137011,1737648643485,-500.0,0.00019564,3]
[350137014,1737648643496,-500.0,0.00019564,3]
[350137016,1737648643505,-568.94,0.00019564,3]
[350137018,1737648643515,-500.0,0.00019564,3]
[350137020,1737648643525,-500.0,0.00019564,3]
[350137022,1737648643535,-500.0,0.00019564,3]
[350137024,1737648643545,-500.0,0.00019564,3]
[350137025,1737648643555,-500.0,0.00019564,7]
[350137027,1737648643565,-500.0,0.00019564,3]
[350137030,1737648643576,-500.0,0.00019564,3]
[350137032,1737648643586,-1655.3,0.00019564,3]
[350137034,1737648643595,-500.0,0.00019564,3]
[350137036,1737648643606,-551.45,0.00019564,3]
[350137038,1737648643615,-500.0,0.00019564,3]
[350137040,1737648643625,-500.0,0.00019564,3]
[350137042,1737648643635,-500.0,0.00019564,3]
[350137044,1737648643644,-500.0,0.00019564,3]
[350137046,1737648643654,-500.0,0.00019564,3]
[350137048,1737648643663,-500.0,0.00019564,3]
[350137050,1737648643673,-500.0,0.00019564,3]
[350137052,1737648643683,-500.0,0.00019564,3]
[350137054,1737648643694,-500.0,0.00019564,3]
[350137056,1737648643707,-500.0,0.00019564,3]
[350137058,1737648643719,-500.0,0.00019564,3]
[350137060,1737648643730,-500.0,0.00019564,3]
[350137062,1737648643740,-500.0,0.00019564,3]
[350137064,1737648643751,-500.0,0.00019564,2]
[350137066,1737648643761,-500.0,0.00019564,3]
[350137068,1737648643770,-500.0,0.00019564,3]
[350137071,1737648643780,-500.0,0.00019564,3]
[350137074,1737648643789,-500.0,0.00019564,3]
[350137076,1737648643799,-500.0,0.00019564,3]
[350137078,1737648643808,-543.78,0.00019564,3]
[350137080,1737648643818,-500.0,0.00019564,3]
[350137082,1737648643828,-500.0,0.00019564,3]
[350137084,1737648643839,-20555.785105,0.00019565,2]
[350137085,1737648643848,-500.0,0.00019635,3]
[350137100,1737648643980,-263.12,0.00019635,3]
[350137102,1737648643993,-500.0,0.00019636,3]
[350137104,1737648644002,-228.43,0.00019636,3]
[350137106,1737648644013,-1003.78891416,0.00019659,2]
[350137108,1737648644022,-300.0,0.000197,8]
[350137110,1737648644032,-569.65,0.00019701,3]
[350137112,1737648644041,-500.0,0.00019701,3]
[350137114,1737648644051,-945.03,0.00019701,3]
[350137116,1737648644061,-500.0,0.00019701,3]
[350137118,1737648644070,-500.0,0.00019701,3]
[350137120,1737648644079,-232.06847642,0.00019701,3]
[350137122,1737648644088,-500.0,0.00019701,3]
[350137124,1737648644098,-500.0,0.00019701,3]
[350137126,1737648644107,-568.94,0.00019701,3]
[350137128,1737648644116,-500.0,0.00019701,3]
[350137129,1737648644126,-500.0,0.00019701,3]
[350137131,1737648644135,-500.0,0.00019701,3]
[350137133,1737648644144,-533.4,0.00019701,3]
[350137135,1737648644154,-500.0,0.00019701,3]
[350137137,1737648644164,-500.0,0.00019701,3]
[350137139,1737648644174,-1655.3,0.00019701,3]
[350137141,1737648644185,-500.0,0.00019701,3]
[350137143,1737648644202,-500.0,0.00019701,3]
[350137145,1737648644211,-500.0,0.00019701,3]
[350137147,1737648644221,-379.86934078,0.00019701,3]
[350137149,1737648644234,-480.84154705,0.00019701,3]
[350137151,1737648644243,-500.0,0.00019701,3]
[350137153,1737648644253,-500.0,0.00019701,3]
[350137155,1737648644263,-500.0,0.00019701,3]
[350137157,1737648644273,-643.44,0.00019701,3]
[350137159,1737648644283,-500.0,0.00019701,3]
[350137161,1737648644293,-500.0,0.00019701,3]
[350137163,1737648644303,-500.0,0.00019701,3]
[350137165,1737648644313,-263.55,0.00019701,3]
[350137167,1737648644323,-500.0,0.00019701,3]
[350137169,1737648644333,-308.46889625,0.00019701,3]
[350137171,1737648644343,-500.0,0.00019701,3]
[350137173,1737648644353,-500.0,0.00019701,3]
[350137175,1737648644363,-253.14,0.00019701,3]
[350137178,1737648644374,-180.11,0.00019701,3]
[350137180,1737648644384,-500.0,0.00019773,3]
[350137182,1737648644393,-557.37,0.00019838,3]
[350137184,1737648644403,-945.03,0.00019838,3]
[350137186,1737648644413,-242.14,0.00019838,3]
[350137188,1737648644424,-568.94,0.00019838,3]
[350137190,1737648644433,-500.0,0.00019838,3]
[350137192,1737648644444,-500.0,0.00019838,3]
[350137194,1737648644458,-299.62,0.00019838,3]
[350137196,1737648644469,-500.0,0.00019838,3]
[350137198,1737648644479,-500.0,0.00019838,3]
[350137200,1737648644489,-1655.3,0.00019838,3]
[350137202,1737648644498,-519.86,0.00019838,3]
[350137204,1737648644508,-274.68,0.00019838,3]
[350137206,1737648644518,-500.0,0.00019838,3]
[350137208,1737648644528,-500.0,0.00019838,3]
[350137209,1737648644537,-234.42,0.00019838,3]
[350137211,1737648644547,-500.0,0.00019838,3]
[350137213,1737648644556,-500.0,0.00019838,3]
[350137215,1737648644567,-500.0,0.00019838,3]
[350137217,1737648644577,-507.39,0.00019838,3]
[350137219,1737648644586,-194.01,0.00019838,3]
[350137221,1737648644596,-500.0,0.00019838,3]
[350137223,1737648644606,-252.48806541,0.000199,2]
[350137225,1737648644615,-500.0,0.0001991,3]
[350137227,1737648644625,-500.0,0.00019942,2]
[350137229,1737648644634,-291.701,0.00019975,2]
[350137231,1737648644644,-945.03,0.00019975,3]
[350137233,1737648644653,-568.94,0.00019975,3]
[350137235,1737648644663,-500.0,0.00019975,3]
[350137237,1737648644672,-500.0,0.00019975,3]
[350137239,1737648644682,-500.0,0.00019975,3]
[350137241,1737648644691,-500.0,0.00019975,3]
[350137243,1737648644703,-1655.3,0.00019975,3]
[350137245,1737648644713,-300.12,0.00019975,3]
[350137247,1737648644722,-500.0,0.00019975,3]
[350137249,1737648644731,-193.34,0.00019975,3]
[350137251,1737648644740,-500.0,0.00019975,3]
[350137253,1737648644750,-500.0,0.00019975,3]
[350137255,1737648644759,-500.0,0.00019975,3]
[350137257,1737648644768,-7132.0,0.0002,2]
[350137259,1737648644778,-160.0,0.0002,3]
[350137261,1737648644787,-848.01045302,0.00020036,2]
[350137263,1737648644796,-500.0,0.00020047,3]
[350137265,1737648644805,-500.0,0.00020099,3]
[350137267,1737648644815,-500.0,0.00020099,3]
[350137269,1737648644825,-503.18845023,0.00020099,3]
[350137271,1737648644834,-500.0,0.00020099,3]
[350137273,1737648644843,-501.86160833,0.00020099,3]
[350137275,1737648644853,-500.0,0.00020099,3]
[350137277,1737648644863,-945.03,0.00020112,3]
[350137279,1737648644873,-568.94,0.00020112,3]
[350137281,1737648644883,-515.14,0.00020112,3]
[350137283,1737648644892,-500.0,0.00020112,3]
[350137285,1737648644902,-500.0,0.00020112,3]
[350137287,1737648644911,-500.0,0.00020112,3]
[350137289,1737648644920,-1655.3,0.00020112,3]
[350137291,1737648644930,-280.82,0.00020112,3]
[350137293,1737648644939,-500.0,0.00020112,3]
[350137295,1737648644953,-500.0,0.00020112,3]
[350137297,1737648644963,-500.0,0.00020112,3]
[350137299,1737648644972,-500.0,0.00020164,2]
[350137301,1737648644982,-500.0,0.00020184,3]
[350137303,1737648644991,-945.03,0.00020249,3]
[350137305,1737648645000,-568.94,0.00020249,3]
[350137307,1737648645009,-500.0,0.00020249,3]
[350137309,1737648645018,-273.64,0.00020249,3]
[350137311,1737648645027,-500.0,0.00020249,3]
[350137313,1737648645037,-1655.3,0.00020249,3]
[350137315,1737648645047,-500.0,0.00020249,3]
[350137317,1737648645056,-500.0,0.00020249,3]
[350137320,1737648645066,-500.0,0.00020249,3]
[350137322,1737648645076,-500.0,0.00020321,3]
[350137324,1737648645085,-945.03,0.00020386,3]
[350137325,1737648645094,-568.94,0.00020386,3]
[350137327,1737648645104,-487.54,0.00020386,3]
[350137329,1737648645113,-500.0,0.00020386,3]
[350137331,1737648645123,-1655.3,0.00020386,3]
[350137333,1737648645132,-329.26,0.00020386,3]
[350137336,1737648645142,-500.0,0.00020386,3]
[350137337,1737648645151,-500.0,0.00020386,3]
[350137339,1737648645161,-400.0,0.00020447,2]
[350137342,1737648645172,-201.66,0.00020458,3]
[350137344,1737648645183,-1000.0,0.0002049,2]
[350137346,1737648645199,-945.03,0.00020523,3]
[350137348,1737648645208,-568.94,0.00020523,3]
[350137350,1737648645218,-396.22,0.00020523,3]
[350137352,1737648645229,-1655.3,0.00020523,3]
[350137354,1737648645238,-500.0,0.00020523,3]
[350137356,1737648645247,-500.0,0.00020523,3]
[350137358,1737648645257,-945.03,0.0002066,3]
[350137360,1737648645268,-568.94,0.0002066,3]
[350137362,1737648645278,-1655.3,0.0002066,3]
[350137364,1737648645287,-500.0,0.0002066,3]
[350137366,1737648645297,-500.0,0.0002066,3]
[350137368,1737648645306,-848.01045302,0.00020672,2]
[350137370,1737648645317,-943.80266268,0.00020749,2]
[350137371,1737648645326,-500.0,0.00020788,3]
[350137373,1737648645336,-591.43303547,0.00020789,3]
[350137376,1737648645345,-500.0,0.00020789,3]
[350137377,1737648645355,-945.03,0.00020797,3]
[350137378,1737648645365,-568.94,0.00020797,3]
[350137379,1737648645374,-1655.3,0.00020797,3]
[350137380,1737648645384,-500.0,0.00020797,3]
[350137381,1737648645394,-504.98,0.00020797,3]
[350137382,1737648645403,-197.00913,0.00020822,2]
[350137383,1737648645412,-945.03,0.00020934,3]
[350137384,1737648645422,-568.94,0.00020934,3]
[350137385,1737648645431,-1655.3,0.00020934,3]
[350137386,1737648645442,-500.0,0.00020934,3]
[350137387,1737648645453,-416.547759,0.00021,2]
[350137388,1737648645463,-160.0,0.00021071,3]
[350137389,1737648645473,-945.03,0.00021071,3]
[350137390,1737648645483,-568.94,0.00021071,3]
[350137391,1737648645493,-1655.3,0.00021071,3]
[350137393,1737648645502,-637.6,0.00021071,3]
[350137394,1737648645512,-300.0,0.000212,9]
[350137396,1737648645521,-501.17520655,0.00021208,2]
[350137398,1737648645531,-945.03,0.00021208,3]
[350137400,1737648645541,-568.94,0.00021208,3]
[350137402,1737648645550,-1655.3,0.00021208,3]
[350137404,1737648645559,-5288.07,0.000213,2]
[350137407,1737648645569,-11054.82,0.000213,2]
[350137410,1737648645579,-848.01045302,0.00021309,2]
[350137412,1737648645588,-945.03,0.00021345,3]
[350137415,1737648645598,-568.94,0.00021345,3]
[350137417,1737648645607,-1655.3,0.00021345,3]
[350137419,1737648645616,-160.0,0.00021454,2]
[350137421,1737648645626,-945.03,0.00021482,3]
[350137423,1737648645636,-568.94,0.00021482,3]
[350137425,1737648645645,-1655.3,0.00021482,3]
[350137428,1737648645655,-1237.10460696,0.00021492,2]
[350137430,1737648645665,-7132.0,0.000216,4]
[350137432,1737648645675,-945.03,0.00021619,3]
[350137434,1737648645685,-568.94,0.00021619,3]
[350137436,1737648645701,-1655.3,0.00021619,3]
[350137438,1737648645710,-945.03,0.00021756,3]
[350137440,1737648645720,-568.94,0.00021756,3]
[350137442,1737648645729,-1655.3,0.00021756,3]
[350137444,1737648645739,-153.0,0.00021856,2]
[350137446,1737648645749,-153.0,0.00021856,2]
[350137448,1737648645758,-153.0,0.00021856,2]
[350137450,1737648645768,-153.0,0.00021856,2]
[350137452,1737648645778,-153.0,0.00021856,2]
[350137454,1737648645788,-153.0,0.00021857,2]
[350137456,1737648645798,-153.0,0.00021857,2]
[350137458,1737648645808,-153.0,0.00021857,2]
[350137460,1737648645817,-153.0,0.00021857,2]
[350137462,1737648645827,-153.0,0.00021857,2]
[350137464,1737648645837,-153.0,0.00021857,2]
[350137466,1737648645846,-153.0,0.00021857,2]
[350137468,1737648645856,-153.0,0.00021859,2]
[350137470,1737648645866,-153.0,0.00021859,2]
[350137472,1737648645875,-153.0,0.00021859,2]
[350137474,1737648645885,-153.0,0.00021859,2]
[350137476,1737648645895,-153.0,0.00021859,2]
[350137479,1737648645904,-153.0,0.00021859,2]
[350137481,1737648645914,-153.0,0.00021859,2]
[350137483,1737648645924,-153.0,0.00021859,2]
[350137485,1737648645933,-153.0,0.00021859,2]
[350137486,1737648645942,-153.0,0.00021859,2]
[350137488,1737648645955,-153.0,0.00021859,2]
[350137490,1737648645965,-153.0,0.00021859,2]
[350137492,1737648645974,-153.0,0.00021861,2]
[350137494,1737648645984,-153.0,0.00021861,2]
[350137496,1737648645993,-153.0,0.00021861,2]
[350137498,1737648646003,-153.0,0.00021861,2]
[350137501,1737648646013,-153.0,0.00021861,2]
[350137503,1737648646022,-153.0,0.00021862,2]
[350137505,1737648646032,-153.0,0.00021862,2]
[350137506,1737648646041,-153.0,0.00021862,2]
[350137508,1737648646051,-153.0,0.00021862,2]
[350137510,1737648646061,-153.0,0.00021862,2]
[350137513,1737648646071,-153.0,0.00021862,2]
[350137515,1737648646081,-153.0,0.00021862,2]
[350137517,1737648646090,-945.03,0.00021893,3]
[350137519,1737648646100,-568.94,0.00021893,3]
[350137521,1737648646109,-1655.3,0.00021893,3]
[350137522,1737648646119,-252.48806541,0.000219,3]
[350137525,1737648646128,-848.01045302,0.00021946,2]
[350137527,1737648646138,-9038.34230599,0.00022,2]
[350137528,1737648646147,-264.0,0.00022,2]
[350137530,1737648646156,-945.03,0.0002203,3]
[350137532,1737648646166,-568.94,0.0002203,3]
[350137535,1737648646175,-1655.3,0.0002203,3]
[350137536,1737648646187,-152.75,0.000221,31]
[350137538,1737648646200,-152.75,0.000221,31]
[350137541,1737648646211,-152.75,0.000221,31]
[350137542,1737648646220,-152.75,0.000221,31]
[350137545,1737648646232,-152.75,0.000221,31]
[350137547,1737648646241,-152.75,0.000221,31]
[350137549,1737648646250,-945.03,0.00022167,3]
[350137551,1737648646260,-568.94,0.00022167,3]
[350137553,1737648646271,-1655.3,0.00022167,3]
[350137555,1737648646281,-264.0,0.00022192,2]
[350137557,1737648646291,-945.03,0.00022304,3]
[350137559,1737648646301,-568.94,0.00022304,3]
[350137561,1737648646310,-1655.3,0.00022304,3]
[350137562,1737648646320,-945.03,0.00022441,3]
[350137564,1737648646330,-568.94,0.00022441,3]
[350137566,1737648646339,-1655.3,0.00022441,3]
[350137568,1737648646349,-945.03,0.00022578,3]
[350137570,1737648646359,-568.94,0.00022578,3]
[350137572,1737648646369,-1655.3,0.00022578,3]
[350137574,1737648646378,-458.979429,0.000227,10]
[350137577,1737648646387,-945.08161546,0.00022715,3]
[350137578,1737648646396,-569.1,0.00022715,3]
[350137580,1737648646406,-1655.43999999,0.00022715,3]
[350137582,1737648646415,-313.773,0.000228,2]
[350137584,1737648646424,-371.2358012,0.00022986,2]
[350137586,1737648646434,-206.0,0.00023,2]
[350137588,1737648646443,-5288.07,0.00023,14]
[350137590,1737648646457,-264.0,0.00023014,2]
[350137592,1737648646467,-11054.82,0.000231,2]
[350137594,1737648646477,-153.0,0.00023123,2]
[350137596,1737648646487,-152.75,0.000232,31]
[350137598,1737648646497,-152.75,0.000232,31]
[350137601,1737648646507,-152.75,0.000232,31]
[350137603,1737648646517,-152.75,0.000232,31]
[350137605,1737648646526,-7132.0,0.00023328,7]
[350137607,1737648646536,-9079.29622472,0.0002334,2]
[350137608,1737648646546,-172.9554584,0.00023397,2]
[350137611,1737648646555,-153.0,0.00023397,2]
[350137613,1737648646565,-153.0,0.00023397,2]
[350137615,1737648646574,-153.0,0.00023397,2]
[350137617,1737648646584,-153.0,0.00023397,2]
[350137619,1737648646596,-153.0,0.00023397,2]
[350137621,1737648646605,-153.0,0.00023397,2]
[350137623,1737648646614,-4420.48290525,0.00023561,14]
[350137625,1737648646623,-9079.29622473,0.00023643,2]
[350137627,1737648646632,-1000.0,0.00023659,2]
[350137629,1737648646641,-485.02134049,0.00023659,2]
[350137631,1737648646651,-1000.0,0.00023685,2]
[350137633,1737648646661,-259.587786,0.00023715,2]
[350137634,1737648646670,-1000.0,0.00023726,2]
[350137637,1737648646680,-198.94,0.00023738,2]
[350137639,1737648646689,-196.0,0.00023738,2]
[350137640,1737648646701,-1000.0,0.00023739,2]
[350137643,1737648646711,-151.0,0.000238,9]
[350137644,1737648646720,-1000.0,0.00023823,2]
[350137646,1737648646729,-197.00913,0.00023836,2]
[350137649,1737648646739,-1000.0,0.00023879,2]
[350137651,1737648646748,-317.84717037,0.00023895,2]
[350137653,1737648646757,-381.88871858,0.000239,2]
[350137654,1737648646766,-252.48806541,0.000239,3]
[350137657,1737648646776,-151.0,0.00023956,7]
[350137658,1737648646786,-307215.20139371,0.00023956,61]
[350137674,1737648646924,-2913.58644193,0.00023956,61]
[350137677,1737648646936,-454.7877303,0.00023956,61]
[350138769,1737648810800,160.0,0.00023284,120]
[350138771,1737649169476,400.0,0.00013973,2]
[350138773,1737649208964,500.0,0.000234,120]
[350138774,1737649230757,160.0,0.00023627,120]
[350138791,1737649350722,160.0,0.00022909,120]
[350138795,1737649410787,160.0,0.0002329,120]
[350138796,1737649497785,1000.0,0.00024,120]
[350138797,1737649531413,160.0,0.00022793,120]
[350138800,1737649598127,-197.00913,0.0001763,2]
[350138801,1737649598149,-197.00913,0.00017808,2]
[350138802,1737649598170,-8200.7579143,0.00018478,2]
[350138803,1737649598192,-300.0,0.00018957,2]
[350138804,1737649598214,-4833.7504847,0.00018958,2]
[350138805,1737649632112,-289.74354889,0.00018768,2]
[350138806,1737649632139,-363.3503005,0.00018958,2]
[350138807,1737649632166,-307.40211164,0.00019171,2]
[350138808,1737649632192,-500.0,0.00019497,3]
[350138809,1737649632219,-300.0,0.00019497,2]
[350138810,1737649632248,-154.65076785,0.00019498,3]
[350138811,1737649632275,-500.0,0.00019498,3]
[350138812,1737649632307,-203.27018988,0.00019498,3]
[350138813,1737649632331,-560.24,0.00019498,3]
[350138814,1737649632361,-500.0,0.00019498,3]
[350138815,1737649632386,-500.0,0.00019498,3]
[350138816,1737649632409,-500.0,0.00019498,3]
[350138817,1737649632434,-500.0,0.00019498,3]
[350138818,1737649632459,-500.0,0.00019498,3]
[350138819,1737649632490,-618.76,0.00019498,3]
[350138820,1737649632516,-500.0,0.00019498,3]
[350138821,1737649632543,-500.0,0.00019498,3]
[350138822,1737649632570,-500.0,0.00019498,3]
[350138823,1737649632598,-500.0,0.00019498,3]
[350138824,1737649632625,-500.0,0.00019498,3]
[350138825,1737649632652,-500.0,0.00019498,3]
[350138826,1737649632675,-500.0,0.00019498,3]
[350138827,1737649632704,-500.0,0.00019498,3]
[350138828,1737649632728,-410.29659809,0.00019498,3]
[350138829,1737649632755,-500.0,0.00019498,3]
[350138830,1737649632782,-500.0,0.00019498,3]
[350138831,1737649632814,-500.0,0.00019498,3]
[350138832,1737649632846,-500.0,0.00019498,3]
[350138833,1737649632871,-500.0,0.00019498,3]